Cogmind - Beta 16.1 @@@ ROGUE MODE // 2026.02.24 @ 18:12:46 Player: Kaisercar Result: Self-destructed Performance ------------- Evolutions (7) 3500 Regions Visited (23) 4600 Robots Destroyed (364) 1820 Value Destroyed (15821) 15821 Prototype IDs (38) 760 Alien Tech Used (0) 0 Bonus (10090) 10090 TOTAL SCORE: 36591 Bonus ------- High Alert Combat Kills 2488 Follower Combat Kills 2955 Entered Garrisons 600 Network Hubs Disabled 200 Aligned with FarCom 300 Acquired ECA 300 Met Zhirov 300 Built Enhanced Grunts 300 A7 Reached Mainframe 300 Met R17 at Cetus 500 Met R17 at Research 2000 Friendly Fire -153 Cogmind --------- Core Integrity 878/1300 Matter 53/300 Energy 420/420 System Corruption 2% Temperature Cool (0) Movement Core (2300) Ox45 Location -3/Research Parts ------- > --- POWER (2) -------- Particle Reactor Light Particle Reactor > --- PROPULSION (5) --- (None) > --- UTILITY (8) ------ Coolant Network Huge Storage Unit Advanced Targeting Computer Advanced Targeting Computer Advanced Weapon Cycler Transmission Jammer System Shield > --- WEAPON (6) ------- Plasma Rifle Heavy Machine Gun KE Penetrator Hypervelocity Railgun > --- INVENTORY (25) --- Light Particle Reactor Micro Antimatter Reactor Improved Heavy Treads Wheel Advanced Heat Sink Large Storage Unit High-capacity Matter Pod (200) Advanced Launcher Guidance Computer Advanced Transmission Jammer Improved Phase Shifter Improved Medium Armor Plating Heavy Reflective Plating Advanced Thermal Shield Long-range Tractor Beam Drone Bay (2/2) Linear Accelerator Linear Accelerator Micro-nuke Launcher Micro-nuke Launcher Tactical Quantum Warhead Improved Plasma Cutter Peak State ------------ > --- POWER ------------ Particle Reactor Light Particle Reactor > --- PROPULSION ------- Advanced Medium Treads Advanced Heavy Treads Wheel Wheel > --- UTILITY ---------- Coolant Network Huge Storage Unit Advanced Targeting Computer Advanced Targeting Computer Advanced Weapon Cycler Transmission Jammer System Shield > --- WEAPON ----------- Plasma Rifle Variable Charge Gun Quantum Rifle KE Penetrator Hypervelocity Railgun Tactical Quantum Warhead > --- INVENTORY -------- Light Particle Reactor Micro Antimatter Reactor Improved Heavy Treads Wheel Advanced Heat Sink Large Storage Unit High-capacity Matter Pod Advanced Launcher Guidance Computer Advanced Transmission Jammer Improved Phase Shifter Improved Medium Armor Plating Heavy Reflective Plating Advanced Thermal Shield Long-range Tractor Beam Drone Bay Variable Charge Gun Heavy Machine Gun Linear Accelerator Linear Accelerator Micro-nuke Launcher Micro-nuke Launcher Improved Plasma Cutter [Rating: 136] Favorites ----------- Power Heavy Ion Engine Engine Heavy Ion Engine Power Core Light Fission Core Reactor Quantum Reactor Propulsion Light Treads Treads Light Treads Leg Carbon-fiber Leg Wheel Compact Wheel Hover Unit Improved Hover Unit Utility Advanced Targeting Computer Device Advanced Terrain Scanner Storage Large Storage Unit Processor Advanced Targeting Computer Hackware System Shield Protection Centrium Medium Armor Plating Weapon Autogun Energy Gun Variable Charge Gun Energy Cannon Beam Cannon Ballistic Gun Autogun Ballistic Cannon Magnetic Acceleration Cannon Launcher Improved Grenade Launcher Special Weapon Improved Plasma Cutter Impact Weapon Power Maul Slashing Weapon Power Sword Build | -11 -10 -10 -9 -9 -9 -8 -8 -8 -8 -7 -7 -7 -7 -6 -6 -6 -6 -6 -5 -5 -5 -4 -3 ------- Run | Yrd Mat Min Mat Min Exi Min Mat Gar Mat Fac Gar Fac Gar Fac Ext Cet Arc Hub Fac Upp Upp Fac Res Slots Evolved 14 | . . . 2 . . . 2 . . 2 . . . 2 . . . . 2 . . 2 2 Power 1 | . . . . . . . . . . . . . . . . . . . . . . . 1 Propulsion 3 | . . . 1 . . . . . . 1 . . . 1 . . . . . . . . . Utility 6 | . . . . . . . 1 . . 1 . . . 1 . . . . 1 . . 1 1 Weapon 4 | . . . 1 . . . 1 . . . . . . . . . . . 1 . . 1 . Parts Attached 270 | 8 15 3 14 . 1 3 7 11 20 9 9 2 21 22 40 9 . 12 12 8 1 11 32 Power 28 | 1 3 . 3 . . . . 1 2 . 1 1 2 4 3 1 . . . . . 1 5 Engine 15 | 1 3 . 3 . . . . . 1 . 1 1 1 2 2 . . . . . . . . Core 6 | . . . . . . . . 1 1 . . . 1 2 . . . . . . . . 1 Reactor 7 | . . . . . . . . . . . . . . . 1 1 . . . . . 1 4 Propulsion 75 | 2 2 1 4 . . 1 3 . 5 4 1 1 11 7 16 2 . 3 1 . . 4 7 Treads 31 | 2 2 1 4 . . 1 3 . 5 . . . . . 5 2 . 2 1 . . 1 2 Leg 34 | . . . . . . . . . . 4 1 1 11 7 9 . . . . . . 1 . Wheel 9 | . . . . . . . . . . . . . . . 2 . . . . . . 2 5 Hover 1 | . . . . . . . . . . . . . . . . . . 1 . . . . . Flight . | . . . . . . . . . . . . . . . . . . . . . . . . Utility 56 | 2 5 . 1 . . . 1 2 4 2 2 . 1 8 9 2 . 1 5 2 . 4 5 Device 22 | 1 . . . . . . 1 1 3 . 1 . . 5 3 . . . 2 1 . 1 3 Storage 7 | 1 3 . . . . . . . . . . . . . . . . . . . . 1 2 Processor 8 | . 1 . 1 . . . . . 1 1 . . . . 1 1 . . . . . 2 . Hackware 2 | . . . . . . . . . . . 1 . . . . . . . 1 . . . . Protection 17 | . 1 . . . . . . 1 . 1 . . 1 3 5 1 . 1 2 1 . . . Artifact . | . . . . . . . . . . . . . . . . . . . . . . . . Weapon 111 | 3 5 2 6 . 1 2 3 8 9 3 5 . 7 3 12 4 . 8 6 6 1 2 15 Energy Gun 24 | 1 . . . . . . . . 2 . 1 . . . 4 2 . 1 2 2 1 2 6 Energy Cannon 7 | . 1 . 1 . 1 . . 1 1 . . . . . . . . 1 1 . . . . Ballistic Gun 55 | 2 3 1 4 . . . 2 5 5 2 3 . 3 2 6 2 . 5 2 4 . . 4 Ballistic Cannon 9 | . . . . . . . 1 . . . . . 3 . 1 . . 1 1 . . . 2 Launcher 11 | . . 1 1 . . 2 . 1 . . 1 . 1 1 1 . . . . . . . 2 Special Weapon 1 | . . . . . . . . . . . . . . . . . . . . . . . 1 Impact Weapon 3 | . 1 . . . . . . . 1 1 . . . . . . . . . . . . . Slashing Weapon 1 | . . . . . . . . 1 . . . . . . . . . . . . . . . Piercing Weapon . | . . . . . . . . . . . . . . . . . . . . . . . . Special Melee Weapon . | . . . . . . . . . . . . . . . . . . . . . . . . Unidentified Prototypes 15 | . . . 1 . . . . . 3 . . . . 1 . 4 . . 2 . . 1 3 Corrupted Parts 1 | . . . . . . . . . . . . . . . . 1 . . . . . . . System Corruption 2 | . . . . . . . . . . . . . . . . 2 . . . . . . . Parts Lost 70 | . 2 . . . . . . . 2 . 2 1 4 2 17 1 3 3 2 2 1 10 18 Power 6 | . 1 . . . . . . . 1 . 1 . . . 2 . . . . . . . 1 Propulsion 24 | . . . . . . . . . . . . 1 3 1 5 1 . 1 . 2 1 4 5 Utility 15 | . 1 . . . . . . . 1 . . . . 1 5 . . 1 1 . . 2 3 Weapon 25 | . . . . . . . . . . . 1 . 1 . 5 . 3 1 1 . . 4 9 Highest Loss Streak 10 | . 1 . . . . . . . 2 . 1 1 2 2 10 1 3 2 1 1 1 4 7 To Critical Strikes . | . . . . . . . . . . . . . . . . . . . . . . . . Average Backups 17 | 3 12 15 20 25 24 25 24 24 25 21 14 15 14 14 13 15 14 14 14 14 15 13 14 Power . | . . . . 1 1 1 1 1 1 . . 1 1 1 . . 1 1 1 1 2 1 . Propulsion 1 | 1 2 2 1 2 2 2 3 4 4 2 . . 1 2 1 1 1 . . . . . 2 Utility 8 | . 5 6 8 11 10 10 9 9 10 10 8 10 9 8 7 7 7 7 6 6 6 5 6 Weapon 6 | . 3 6 10 11 11 12 10 9 8 6 4 4 3 3 4 6 5 5 6 6 6 4 3 Tool/Special . | . . . . . . . . . . . . . . . . . . . . . . . . Unused Backups 60 | . 4 2 4 . 2 . 4 3 1 3 1 . 4 4 4 1 . . 1 . . 7 15 Power 7 | . . . . . . . . . . . 1 . 1 2 . . . . . . . 2 1 Propulsion 7 | . 2 . . . . . 2 . . . . . . . 2 . . . . . . . 1 Utility 29 | . 1 2 . . 1 . 1 1 . 2 . . 2 2 1 . . . 1 . . 3 12 Weapon 16 | . 1 . 4 . 1 . 1 2 1 1 . . 1 . 1 1 . . . . . 1 1 Tool/Special 1 | . . . . . . . . . . . . . . . . . . . . . . 1 . Average Slot Usage (%) 95 | . 99 100 99 100 100 100 99 100 98 94 99 98 99 99 95 91 86 88 91 85 76 82 86 Engine 5 | . 13 14 11 11 11 11 9 6 2 7 6 7 6 3 2 . . . . . . . . Core 1 | . . . . . . . . 2 6 . . . . 2 3 . . . . . . . . Reactor 1 | . . . . . . . . . . . . . . . . 6 6 6 5 5 5 5 8 Treads 16 | . 27 28 33 33 33 33 27 27 26 14 . . . . 6 13 13 15 20 14 5 6 7 Leg 7 | . . . . . . . . . . 11 30 28 29 33 21 . . . . . . 1 . Wheel 1 | . . . . . . . . . . . . . . . 3 10 6 5 . . . 3 7 Device 5 | . 5 . . . . . 8 . 7 6 5 7 . 7 8 6 6 6 5 5 5 10 10 Storage 7 | . 14 14 11 11 11 11 9 9 9 7 7 7 7 6 6 6 6 6 5 5 5 4 2 Processor 10 | . 5 14 11 11 11 11 9 9 8 15 15 15 15 13 12 13 13 13 8 5 5 7 13 Hackware 1 | . . . . . . . . . . . . . . . . . . . 4 5 5 5 4 Protection 4 | . 3 . . . . . . 8 1 . . . 7 4 4 6 6 5 7 10 11 7 2 Energy Gun 3 | . . . . . . . . . 3 7 6 7 3 . 4 8 11 4 3 4 15 11 10 Energy Cannon 1 | . 7 14 11 4 . . . . 1 . 1 1 . . . . . . . . . . . Ballistic Gun 19 | . 20 7 21 28 33 28 34 28 24 12 15 13 16 18 14 17 13 17 19 22 12 12 12 Impact Weapon 2 | . . . . . . . . 3 3 5 6 7 4 5 3 . . 2 4 1 . 4 . Peak Build Rating 136 | 7 11 11 21 21 29 22 35 43 49 54 49 50 59 74 74 103 101 100 110 106 87 108 136 Average Rating 54 | 5 9 9 17 21 21 21 29 35 44 51 46 48 49 69 60 81 100 85 99 92 78 90 112 On Entrance 49 | . 7 10 11 21 21 22 22 35 43 48 51 49 50 58 74 54 101 99 73 106 87 78 68 Avg Prop Armor Cover (%) 9 | . . . . . . . . . . . . . . 2 10 14 19 7 . . . 11 12 Naked Turns . | . . . . . . . . . . . . . . . . . . . . . . . . Heaviest Build 162 | 11 86 29 98 98 97 98 104 110 110 106 51 50 57 56 59 70 68 67 86 83 80 84 162 Greatest Support 163 | 40 40 40 60 60 60 60 60 60 62 60 59 62 66 86 101 100 16 160 163 163 55 97 70 Greatest Overweight (x) 8 | . 8 . 1 1 1 1 1 1 2 1 . 1 1 . 1 4 4 4 . 1 2 5 8 Average Overweight (x) . | . . . . 1 1 1 1 1 1 . . . . . . 1 4 1 . . 1 2 4 Largest Inventory Capacity 25 | 8 25 15 25 25 25 25 25 25 25 25 15 15 15 15 15 15 15 15 15 15 15 25 25 Average Capacity 18 | 7 16 15 21 25 25 25 25 25 25 21 15 15 15 15 15 15 15 15 15 15 15 13 18 Most Carried 25 | 5 15 15 25 25 25 25 25 25 25 25 15 15 15 15 15 15 15 15 15 15 15 15 25 Average Carried 17 | 3 12 15 20 24 24 24 24 24 24 21 14 15 14 14 13 14 14 14 14 14 15 13 15 Final Capacity 25 | 8 15 15 25 25 25 25 25 25 25 15 15 15 15 15 15 15 15 15 15 15 15 5 25 Final Carried 25 | 5 15 15 25 25 25 25 25 25 25 15 15 15 15 15 15 15 12 15 15 15 15 5 23 Class Distribution -------------------- 14% | Skirmisher 14% | Scavenger-Assassin 10% | Scavenger-Skirmisher 10% | Mutant 10% | Gunner 9% | Assassin 9% | Scavenger-Tank 6% | Scavenger-Gunner 5% | Scavenger-Executioner Dominant Class ---------------- Mutant | -10/Materials Mutant | -10/Mines Gunner | -9/Materials Gunner | -9/Mines Gunner | -9/Exiles Scavenger-Skirmisher | -8/Mines Scavenger-Skirmisher | -8/Materials Skirmisher | -8/Garrison Assassin | -8/Materials Assassin | -7/Factory Scavenger-Skirmisher | -7/Garrison Commander-Assassin | -7/Factory Scavenger-Skirmisher | -7/Garrison Scavenger-Assassin | -6/Factory Scavenger-Gunner | -6/Extension Scavenger-Tank | -6/Cetus Scavenger-Tank | -6/Archives Scavenger-Tank | -6/Hub_04(d) Scavenger-Assassin | -5/Factory Scavenger-Tank | -5/Upper Caves Scavenger-Tank | -5/Upper Caves Scavenger-Assassin | -4/Factory Scavenger-Executioner | -3/Research Resources | -11 -10 -10 -9 -9 -9 -8 -8 -8 -8 -7 -7 -7 -7 -6 -6 -6 -6 -6 -5 -5 -5 -4 -3 ----------- Run | Yrd Mat Min Mat Min Exi Min Mat Gar Mat Fac Gar Fac Gar Fac Ext Cet Arc Hub Fac Upp Upp Fac Res Matter Collected 13246 | 276 467 132 447 47 . 243 290 1204 1167 379 1047 61 1130 694 1944 257 20 712 539 321 198 771 900 Remotely 224 | . . . . . . . . . . . . . . . . . . . 224 . . . . Salvage Created 16133 | 111 508 45 779 86 . 258 370 1179 1517 304 1049 89 823 1078 1995 64 35 1320 659 401 137 1755 1571 Parts 748 | 9 36 14 38 21 . 20 24 67 68 16 44 2 30 33 73 1 . 72 38 20 8 65 49 Haulers Intercepted 15 | . 2 . 3 . . . 2 . 3 . . . . 1 . . . 2 . . . . 2 Recyclers Shooed 7 | . . . . . . . . . . 1 . . . 1 3 . . . 1 . . . 1 Parts Field Recycled . | . . . . . . . . . . . . . . . . . . . . . . . . Retrieved Matter . | . . . . . . . . . . . . . . . . . . . . . . . . Parts Self-Destructed 24 | . . . . . . . . . . . . . . . . . . . . 16 8 . . Prevented 2 | . . . . . . . . . . . . . . . . . . . . . 2 . . Parts Restored . | . . . . . . . . . . . . . . . . . . . . . . . . Kills | -11 -10 -10 -9 -9 -9 -8 -8 -8 -8 -7 -7 -7 -7 -6 -6 -6 -6 -6 -5 -5 -5 -4 -3 ------- Run | Yrd Mat Min Mat Min Exi Min Mat Gar Mat Fac Gar Fac Gar Fac Ext Cet Arc Hub Fac Upp Upp Fac Res Combat Hostiles Destroyed 267 | . 10 6 10 10 . 13 3 27 28 6 24 2 24 13 21 1 . 19 8 5 2 20 15 Melee 1 | . . . . . . . . . . . . . . . . . . . . . . 1 . Guns 201 | . 6 . 3 2 . 6 3 21 28 6 23 2 18 5 18 1 . 14 8 5 2 19 11 Cannons 19 | . 4 1 4 . . . . 1 . . 1 . 1 4 1 . . 1 . . . . 1 AOE 44 | . . 5 2 8 . 7 . 5 . . . . 5 4 2 . . 4 . . . . 2 Classes Destroyed 22 | 2 6 . 3 . . . 1 1 2 . 1 . 2 . . . . . . 1 . 1 2 Worker 14 | . . . 1 . . . . . 1 1 . . . . 3 . . 4 1 . . 3 . Builder 13 | . . . 1 . . . . . . 1 . . . . 2 . . 2 1 . . 2 4 Tunneler 10 | 3 . 1 . . . . . . . . . . . . 2 . . 2 . . . 2 . Hauler 15 | . 2 . 3 . . . 2 . 3 . . . . 1 . . . 2 . . . . 2 Recycler 24 | 1 . . 1 . . . 1 . 1 . . . . 5 5 . . . 2 . . 5 3 Mechanic 2 | . 1 . . . . . . . . . . . . . . . . . 1 . . . . Operator 3 | . 1 . . . . . . . . . . . . 1 . . . 1 . . . . . Watcher 16 | . 2 . 2 . . . 2 1 2 2 1 . . 1 . . . 1 1 . . 1 . Swarmer 74 | . 2 6 . 10 . 10 . 4 5 3 6 . 12 4 2 . . 4 4 . . . 2 Grunt 92 | . 8 . 5 . . 3 1 10 11 2 12 1 4 3 13 . . 8 . . . 5 6 Brawler 7 | . . . . . . . . 2 3 . . . 1 1 . . . . . . . . . Duelist 7 | . . . . . . . . . 3 . . . 2 . 1 . . . . . . . 1 Protector 3 | . . . . . . . . . 1 . 1 . . . 1 . . . . . . . . Sentry 37 | . . . 5 . . . . 8 5 1 4 1 1 3 3 . . 4 . . 1 . 1 Demolisher 3 | . . . . . . . . . . . 1 . . . . . . . . . . 1 1 Hunter 18 | . . . . . . . 2 3 1 . . . 1 . 1 . . 2 4 2 1 . 1 Programmer 18 | . . . . . . . . . . . . . 3 2 . . . 1 . 2 . 10 . Behemoth 1 | . . . . . . . . . . . . . 1 . . . . . . . . . . Cetus Guard 1 | . . . . . . . . . . . . . . . . 1 . . . . . . . Striker 2 | . . . . . . . . . . . . . . . . . . . . . . . 2 Executioner 1 | . . . . . . . . . . . . . . . . . . . . . . . 1 Assembled 4 | . . . . . . . . . . . . . . . . . . . . . . 4 . Thug 2 | . . . . . . . . . . . . . 1 . 1 . . . . . . . . Mutant 1 | . . . . . . . . . . . . . . . . . . . . 1 . . . Best Kill Streak 11 | 2 3 4 2 8 . 4 4 4 5 5 4 1 5 6 5 1 . 11 5 2 2 6 5 Combat Bots Only 8 | . 3 3 2 8 . 4 1 4 5 2 4 1 5 4 4 1 . 5 4 2 2 4 5 Max Kills in Single Turn 8 | 1 1 2 2 8 . 4 1 2 2 2 3 1 4 7 3 1 . 4 2 1 1 3 2 Gunslinging 2 | . . . . . . 1 . . 1 . 2 . 1 . . . . . . . . . . Exploded 8 | . . 2 2 8 . 4 . 2 . . . . 3 4 1 . . 4 . . . . 1 Melee 1 | . . . . . . . . . . . . . . . . . . . . . . 1 . Uniques/NPCs Destroyed . | . . . . . . . . . . . . . . . . . . . . . . . . Combat | -11 -10 -10 -9 -9 -9 -8 -8 -8 -8 -7 -7 -7 -7 -6 -6 -6 -6 -6 -5 -5 -5 -4 -3 -------- Run | Yrd Mat Min Mat Min Exi Min Mat Gar Mat Fac Gar Fac Gar Fac Ext Cet Arc Hub Fac Upp Upp Fac Res Hostile Shots Fired 1756 | . 66 13 29 11 . 35 11 85 84 38 133 33 152 139 317 39 . 132 75 55 17 139 153 Missed 541 | . 11 5 9 3 . 7 5 13 19 13 46 16 50 45 122 12 . 39 25 12 5 42 42 Hits 1215 | . 55 8 20 8 . 28 6 72 65 25 87 17 102 94 195 27 . 93 50 43 12 97 111 Melee 29 | . . . . . . . . . 13 . . . . 2 . . . . . . . 4 10 Projectile 1186 | . 55 8 20 8 . 28 6 72 52 25 87 17 102 92 195 27 . 93 50 43 12 93 101 AOE 19 | . . . . . . . . . . . 2 . . . 3 . . . . . . 9 5 Critical Strikes 47 | . 2 . . . . 1 . 4 5 1 2 . 4 2 5 4 . 1 . 3 . 6 7 Actively Blocked 1 | . . . . . . . . . . . . . . 1 . . . . . . . . . Part Disruptions 1 | . . . . . . . . . . . . . . . . . . . . . . 1 . Damage Taken 21091 | . 703 59 269 85 . 339 95 1042 1265 311 1036 205 1429 1098 2891 590 983 1480 607 822 254 2230 3298 Core 2111 | . 117 12 55 37 . 10 52 116 237 18 124 . 169 103 136 39 43 104 39 39 . 239 422 Absorbed by Shields 614 | . . . . . . . . . . . . . . 149 336 129 . . . . . . . Redirected to Shielding 47 | . . . . . . . . . . . . . 35 12 . . . . . . . . . Regen/Repaired (Parts) 265 | . 115 . . . . . . . 150 . . . . . . . . . . . . . . Core Remaining (%) 65 | 100 . 48 . . . 74 . . 26 . . . 55 . . . . 50 . . 92 79 . Volleys Fired 755 | 17 66 5 32 3 . 15 12 67 78 17 50 4 60 37 98 11 4 39 22 16 4 55 43 Largest 6 | 2 2 2 3 3 . 3 4 4 4 4 4 3 4 4 4 4 2 4 5 5 5 5 6 Hottest 417 | 40 83 83 114 114 . 69 92 134 159 151 177 125 153 141 247 288 155 170 203 154 246 298 417 Shots Fired 2383 | 34 132 7 92 7 . 39 48 211 244 57 152 12 152 108 291 39 8 143 70 70 15 244 208 Gun 2198 | 34 109 2 60 5 . 36 48 182 230 55 146 12 127 90 283 39 8 140 65 69 15 244 199 Cannon 137 | . 23 2 30 1 . . . 23 13 1 4 . 14 15 1 . . 2 5 . . . 3 Launcher 48 | . . 3 2 1 . 3 . 6 1 1 2 . 11 3 7 . . 1 . 1 . . 6 Special . | . . . . . . . . . . . . . . . . . . . . . . . . Kinetic 1838 | 34 109 2 60 5 . 36 48 191 202 39 114 8 122 105 218 27 . 115 64 69 12 152 106 Thermal 497 | . 23 2 30 1 . . . 14 41 17 36 4 19 . 66 12 8 27 6 . 3 92 96 Explosive 46 | . . 3 2 1 . 3 . 6 1 1 . . 11 3 7 . . 1 . 1 . . 6 Electromagnetic 2 | . . . . . . . . . . . 2 . . . . . . . . . . . . Robot Hit Streak 27 | 7 13 14 8 4 . 12 22 27 19 10 16 13 12 12 16 16 12 25 7 12 3 16 26 Robot Miss Streak 8 | 3 3 2 3 1 . 3 1 3 4 5 3 2 8 5 5 3 . 6 2 3 3 4 3 Penetration Max 2 | . . . . . . . . . 1 . . . 1 . 2 1 . 1 1 1 . 1 1 Secondary Targets 32 | . . . . 1 . 3 . . 6 2 4 . 5 . 2 1 . 1 1 2 1 2 1 Max Gunslinging Chain 2 | . . . . 1 . 1 . . 1 1 2 . 1 . 1 1 . 1 1 1 1 1 1 Shots Hit Robots 1557 | 20 88 2 41 5 . 27 32 154 157 34 104 10 108 70 184 38 8 95 38 46 7 145 144 Core Hits 857 | 8 33 6 22 9 . 18 18 70 68 24 78 11 89 42 98 36 3 66 26 13 6 54 59 Critical Kills 24 | 1 . . 1 . . . . . 1 1 . . . . 5 . . 3 4 2 . 2 4 Critical Parts Destroyed 25 | . . . . . . . . 1 2 1 . . 1 . 3 . . 6 1 2 1 3 4 Critical Strikes 71 | 1 . . 1 . . . . 1 5 3 1 . 2 2 15 3 . 9 5 4 1 5 13 Burn 16 | . . . . . . . . . 2 1 1 . . . 6 3 . . . . . . 3 Meltdown 1 | . . . 1 . . . . . . . . . . . . . . . . . . . . Destroy 46 | 1 . . . . . . . 1 3 2 . . . . 8 . . 9 4 4 1 3 10 Blast 3 | . . . . . . . . . . . . . 1 2 . . . . . . . . . Smash 5 | . . . . . . . . . . . . . 1 . 1 . . . 1 . . 2 . Melee Attacks 335 | . 8 . 1 . . 4 2 49 22 20 46 2 24 46 57 . . 9 21 2 . 22 . Impact 318 | . 8 . 1 . . 4 2 41 13 20 46 2 24 46 57 . . 9 21 2 . 22 . Slashing 17 | . . . . . . . . 8 9 . . . . . . . . . . . . . . Piercing . | . . . . . . . . . . . . . . . . . . . . . . . . Sneak Attacks 18 | . . . . . . . . . 5 . . . . 3 2 . . 1 1 . . 6 . Combat Hostiles . | . . . . . . . . . . . . . . . . . . . . . . . . Follow-up Attacks . | . . . . . . . . . . . . . . . . . . . . . . . . Damage Inflicted 40226 | 157 1092 271 1038 551 . 774 404 2742 3503 664 1964 213 3180 3002 5102 991 191 2891 1180 1040 123 4591 4562 Guns 29399 | 157 648 . 495 66 . 392 404 2055 2956 664 1904 213 1739 1223 3838 991 191 2426 1042 810 123 3718 3344 Cannons 1839 | . 317 18 390 . . . . 235 60 . 60 . 270 369 28 . . 58 . . . . 34 Explosions 6706 | . 70 239 153 484 . 382 . 452 76 . . . 1052 1077 947 . . 309 . . . 281 1184 Melee 2181 | . . . . . . . . . 405 . . . 119 333 271 . . 98 138 230 . 587 . Ramming 101 | . 57 14 . 1 . . . . 6 . . . . . 18 . . . . . . 5 . Kinetic 23541 | 157 648 . 495 66 . 392 404 2183 2493 466 1369 139 1799 1592 2954 741 . 1898 995 810 98 2339 1503 Thermal 8287 | . 317 18 390 . . . . 107 523 198 595 74 210 309 912 250 191 586 47 . 25 1660 1875 Explosive 6116 | . 70 239 153 484 . 382 . 452 76 . . . 1052 768 947 . . 309 . . . . 1184 Electromagnetic . | . . . . . . . . . . . . . . . . . . . . . . . . Impact 1969 | . . . . . . . . . 193 . . . 119 333 271 . . 98 138 230 . 587 . Slashing 212 | . . . . . . . . . 212 . . . . . . . . . . . . . . Piercing . | . . . . . . . . . . . . . . . . . . . . . . . . Highest Corruption 10 | . . . . . . . . . 7 . . 2 5 2 2 4 4 6 . 5 5 10 2 Average Corruption 3 | . . . . . . . . . 3 . . 2 4 1 2 2 4 4 . 4 5 4 2 Corruption Purged . | . . . . . . . . . . . . . . . . . . . . . . . . Corruption Blocked . | . . . . . . . . . . . . . . . . . . . . . . . . Effects 183 | . . . . . . . . . 28 . . 1 22 12 32 7 4 13 . 23 4 20 17 Message Errors 51 | . . . . . . . . . 11 . . . 3 3 8 1 1 2 . 8 1 8 5 Matter Fused 44 | . . . . . . . . . 6 . . 1 7 3 7 3 1 4 . 5 . 3 4 Heat Flow Errors 14 | . . . . . . . . . 3 . . . 2 1 3 2 . . . 1 2 . . Energy Discharges 15 | . . . . . . . . . 3 . . . 2 3 2 . . 1 . 1 . 1 2 Parts Rejected 1 | . . . . . . . . . . . . . . . 1 . . . . . . . . Parts Fused 1 | . . . . . . . . . . . . . . . 1 . . . . . . . . Data Loss (minor) 27 | . . . . . . . . . 2 . . . 3 1 5 1 2 4 . 2 . 4 3 Data Loss (major) 12 | . . . . . . . . . 2 . . . 3 . 3 . . 1 . 2 . 1 . Misfires 8 | . . . . . . . . . . . . . . 1 1 . . . . 3 1 1 1 Alerts 3 | . . . . . . . . . . . . . 1 . . . . 1 . . . . 1 Weapon Failures 7 | . . . . . . . . . 1 . . . 1 . 1 . . . . 1 . 2 1 Overload Shots . | . . . . . . . . . . . . . . . . . . . . . . . . Overflow Damage 1600 | . . 3 . 75 . . . 20 120 . . . 97 406 81 . . 115 29 208 . 446 . Projectiles 28 | . . . . . . . . . . . . . . . . . . 9 . . . 19 . Explosions 463 | . . 3 . 75 . . . 20 10 . . . 28 187 38 . . 48 . . . 54 . Melee 1109 | . . . . . . . . . 110 . . . 69 219 43 . . 58 29 208 . 373 . Knockbacks 11 | . . . . . . . . . . . . . 2 3 2 . . . 1 . . 3 . Impact 7 | . . . . . . . . . . . . . . 2 2 . . . 1 . . 2 . Kinetic 3 | . . . . . . . . . . . . . 2 1 . . . . . . . . . Secondary 1 | . . . . . . . . . . . . . . . . . . . . . . 1 . Self-Inflicted Damage 332 | . 23 . . . . . . 54 . . . . . 253 2 . . . . . . . . Shots 7 | . 1 . . . . . . 2 . . . . . 4 . . . . . . . . . Rammed 11 | . 7 . . 1 . . . . 1 . . . . . 1 . . . . . . 1 . Targets Rammed 14 | . 7 1 . 1 . . . . 1 . . . . . 3 . . . . . . 1 . Kicked 2 | . . . . . . . . . . . . . . . 2 . . . . . . . . Crushed 1 | . . 1 . . . . . . . . . . . . . . . . . . . . . Highest Temperature 590 | . 209 64 276 48 . 215 118 325 366 261 325 108 314 161 590 185 . 161 296 291 217 407 408 Average Temperature 98 | . 73 33 72 22 . 86 40 107 120 94 92 56 102 46 103 48 . 48 108 140 98 136 97 Received Heat Transfer 4194 | . 366 . 126 9 . 153 . 396 432 96 357 57 162 170 1275 31 . 198 . 36 27 120 183 Effects 13 | . . . . . . . . . 4 . 1 . . . 6 . . . . . . 1 1 Shutdowns 2 | . . . . . . . . . . . . . . . 1 . . . . . . . 1 Energy Bleed 2 | . . . . . . . . . 1 . . . . . . . . . . . . 1 . Interference 3 | . . . . . . . . . 3 . . . . . . . . . . . . . . Matter Decay 2 | . . . . . . . . . . . 1 . . . 1 . . . . . . . . Short Circuit 1 | . . . . . . . . . . . . . . . 1 . . . . . . . . Damage (minor) 2 | . . . . . . . . . . . . . . . 2 . . . . . . . . Damage (major) 1 | . . . . . . . . . . . . . . . 1 . . . . . . . . Siege Activations . | . . . . . . . . . . . . . . . . . . . . . . . . Martial Activations . | . . . . . . . . . . . . . . . . . . . . . . . . Shielding Activations . | . . . . . . . . . . . . . . . . . . . . . . . . Robots Disrupted . | . . . . . . . . . . . . . . . . . . . . . . . . Combat Hostiles . | . . . . . . . . . . . . . . . . . . . . . . . . Robots Corrupted 12 | . . . . . . . . . . . . . 2 2 1 . . 2 1 1 . 3 . Combat Hostiles 3 | . . . . . . . . . . . . . 2 . . . . . . 1 . . . Parts Fried 27 | . . . . . . . . . 1 . . . 2 4 2 . . 4 1 . . 13 . Impact Corruptions 33 | . . . . . . . . . 2 . . . 2 5 1 . . 3 1 8 . 11 . Robots Melted 2 | . . . 1 . . . . . . . . . . . . . . . . . . . 1 Combat Hostiles 2 | . . . 1 . . . . . . . . . . . . . . . . . . . 1 Parts Melted 25 | . 2 . 1 . . . . . . 2 . 1 . . 7 . 3 1 . . . 2 6 Heat Transferred 15179 | . 666 37 703 . . . . 110 962 407 1054 148 387 200 2421 642 348 1300 74 . 37 2198 3485 Parts Sabotaged . | . . . . . . . . . . . . . . . . . . . . . . . . Parts Stolen . | . . . . . . . . . . . . . . . . . . . . . . . . Parts Stripped . | . . . . . . . . . . . . . . . . . . . . . . . . Power Chain Reactions . | . . . . . . . . . . . . . . . . . . . . . . . . Alert | -11 -10 -10 -9 -9 -9 -8 -8 -8 -8 -7 -7 -7 -7 -6 -6 -6 -6 -6 -5 -5 -5 -4 -3 ------- Run | Yrd Mat Min Mat Min Exi Min Mat Gar Mat Fac Gar Fac Gar Fac Ext Cet Arc Hub Fac Upp Upp Fac Res Maximum Alert Level 5 | . . . . . . . . 4 3 1 4 3 5 4 4 3 2 2 1 . . 1 1 Low Security (%) 45 | 100 100 100 100 100 . 100 100 15 . 69 9 . . . . . . 31 93 . . 70 90 Level 1 9 | . . . . . . . . 12 . 30 14 . . . 10 . 73 53 6 . . 29 9 Level 2 14 | . . . . . . . . 24 72 . 13 . 5 . 29 9 26 15 . . . . . Level 3 21 | . . . . . . . . 26 27 . 41 100 13 77 56 90 . . . . . . . Level 4 6 | . . . . . . . . 21 . . 19 . 19 22 3 . . . . . . . . Level 5 2 | . . . . . . . . . . . . . 60 . . . . . . . . . . High Security . | . . . . . . . . . . . . . . . . . . . . . . . . Max Security . | . . . . . . . . . . . . . . . . . . . . . . . . Peak Influence 2039 | 5 99 103 69 199 . 165 57 1566 837 338 1492 871 2039 1218 1219 815 614 485 224 . . 354 279 Initial 1070 | . . 27 . 6 . . 37 . 763 338 45 783 604 1070 592 679 300 179 224 . . . 171 Average 450 | . 24 33 18 72 . 86 17 702 669 160 738 832 1497 1041 702 751 347 266 93 . . 130 59 Influence Increases 13540 | 20 375 160 344 243 . 325 119 1666 805 245 1627 161 1615 710 1893 327 364 627 407 110 50 725 622 Destroy 0b10 Robot/C 6640 | . 200 120 200 200 . 260 60 640 540 120 680 80 740 300 900 160 160 380 160 80 40 320 300 Destroy 0b10 Robot/NC 555 | 20 30 5 40 . . . 25 5 40 20 10 . 10 35 85 10 10 60 30 10 . 65 45 Destroy Leader 990 | . 58 20 70 30 . 40 28 20 130 24 30 10 40 72 124 . . 96 32 20 10 62 74 Allied During Kill 1386 | . . . . . . . . 39 4 . 143 63 306 6 528 127 170 . . . . . . Successful Hack 250 | . 13 . . . . . 4 14 8 29 33 6 . 43 43 9 . . 48 . . . . Select Force Hacks 50 | . . . . . . . . . . . . . . . . . . 50 . . . . . Disable Machine 435 | . 15 . 15 . . . . 30 30 . 15 . 15 120 60 . 15 15 15 . . 90 . Anti-Garrison Action 1450 | . . . . . . . . 700 . . 450 . 300 . . . . . . . . . . Destroy Structure 1154 | . 29 15 19 13 . 25 2 158 38 22 176 2 129 89 63 21 9 26 62 . . 128 128 Lose Combat Pursuer 630 | . 30 . . . . . . 60 15 30 90 . 75 45 90 . . . 60 . . 60 75 Influence Decreases 13294 | 20 305 230 328 259 . 230 214 100 1627 924 200 789 440 1539 1890 790 600 683 703 272 50 399 702 Entered New Map 5665 | . . 43 . 10 . . 58 . 803 406 20 709 260 969 618 534 450 335 234 61 . . 155 Time Decay 5598 | 20 285 187 328 249 . 230 156 . 654 388 . 70 . 530 642 206 60 318 315 211 50 299 400 Lost Part 637 | . 20 . . . . . . . 20 . 20 10 40 20 170 10 30 30 20 . . 100 147 Lost Ally 830 | . . . . . . . . 100 . . 160 . 140 20 310 40 60 . . . . . . Purge Threat 564 | . . . . . . . . . 150 130 . . . . 150 . . . 134 . . . . Squads Dispatched 46 | . 2 . 2 . . . . . 5 1 . . . 5 7 . . 7 1 . . 6 10 Investigation 11 | . 1 . . . . . . . 1 . . . . 1 3 . . 2 . . . . 3 Extermination 11 | . . . . . . . . . . 1 . . . 3 . . . 1 1 . . 5 . Reinforcement 18 | . 1 . 2 . . . . . 1 . . . . 1 2 . . 3 . . . 1 7 Assault 5 | . . . . . . . . . 3 . . . . . 2 . . . . . . . . Garrison 1 | . . . . . . . . . . . . . . . . . . 1 . . . . . Intercept . | . . . . . . . . . . . . . . . . . . . . . . . . Searches Triggered . | . . . . . . . . . . . . . . . . . . . . . . . . Construction Impeded 3 | . . . . . . . . . . . . . . . 2 . . 1 . . . . . Haulers Reinforced 4 | . . . . . . . . . . . . . . . . . . 1 . . . 1 2 Active Scanning Responses . | . . . . . . . . . . . . . . . . . . . . . . . . Cargo Convoy Interrupts . | . . . . . . . . . . . . . . . . . . . . . . . . Stealth | -11 -10 -10 -9 -9 -9 -8 -8 -8 -8 -7 -7 -7 -7 -6 -6 -6 -6 -6 -5 -5 -5 -4 -3 --------- Run | Yrd Mat Min Mat Min Exi Min Mat Gar Mat Fac Gar Fac Gar Fac Ext Cet Arc Hub Fac Upp Upp Fac Res Distress Signals 24 | . 1 . 1 . . . . . 2 1 1 . . 1 3 2 . 2 2 . . . 8 Communications Jammed 2 | . . . . . . . . . . . . . . . . . . . . . . 1 1 Distress Signals 2 | . . . . . . . . . . . . . . . . . . . . . . 1 1 Times Spotted 455 | . 23 6 13 13 . 12 5 31 39 13 35 4 40 25 55 10 8 26 16 5 2 41 33 Peak Tracking Total 12 | . 5 3 2 10 . 4 1 4 6 3 6 3 5 6 6 5 12 6 6 2 2 11 6 Tactical Retreats 28 | . 2 . . . . . . 2 1 2 3 . 2 2 5 . . . 3 . . 3 3 Traps | -11 -10 -10 -9 -9 -9 -8 -8 -8 -8 -7 -7 -7 -7 -6 -6 -6 -6 -6 -5 -5 -5 -4 -3 ------- Run | Yrd Mat Min Mat Min Exi Min Mat Gar Mat Fac Gar Fac Gar Fac Ext Cet Arc Hub Fac Upp Upp Fac Res Traps Triggered 24 | . 4 . . . . . . 11 2 1 1 2 . . 1 . . . . . . 1 1 Indirectly . | . . . . . . . . . . . . . . . . . . . . . . . . Trap Hack Attempts . | . . . . . . . . . . . . . . . . . . . . . . . . Triggered . | . . . . . . . . . . . . . . . . . . . . . . . . Disarmed . | . . . . . . . . . . . . . . . . . . . . . . . . Reprogrammed . | . . . . . . . . . . . . . . . . . . . . . . . . Reused . | . . . . . . . . . . . . . . . . . . . . . . . . Traps Extracted . | . . . . . . . . . . . . . . . . . . . . . . . . Installed . | . . . . . . . . . . . . . . . . . . . . . . . . Triggered . | . . . . . . . . . . . . . . . . . . . . . . . . Machines | -11 -10 -10 -9 -9 -9 -8 -8 -8 -8 -7 -7 -7 -7 -6 -6 -6 -6 -6 -5 -5 -5 -4 -3 ---------- Run | Yrd Mat Min Mat Min Exi Min Mat Gar Mat Fac Gar Fac Gar Fac Ext Cet Arc Hub Fac Upp Upp Fac Res Machines Disabled 47 | . 1 . 1 . . . . 6 2 . 7 . 7 8 4 . 1 1 1 2 . 6 . Max in Single Turn 5 | . 1 . 1 . . . . 1 1 . 1 . 1 5 1 . . 1 1 1 . 3 . Garrison Access 1 | . . . . . . . . . . . . . . . . . . . 1 . . . . Garrison Relay 15 | . . . . . . . . 4 . . 5 . 6 . . . . . . . . . . Network Hub 1 | . . . . . . . . . . . . . . . . . . 1 . . . . . Energy Cycler 1 | . . . . . . . . . . . . . . . 1 . . . . . . . . Machines Repaired . | . . . . . . . . . . . . . . . . . . . . . . . . Machines Dismantled . | . . . . . . . . . . . . . . . . . . . . . . . . Machines Sabotaged 1 | . . . . . . . . . . . . . . . . . . 1 . . . . . Overloaded Fab Kills . | . . . . . . . . . . . . . . . . . . . . . . . . Hacking | -11 -10 -10 -9 -9 -9 -8 -8 -8 -8 -7 -7 -7 -7 -6 -6 -6 -6 -6 -5 -5 -5 -4 -3 --------- Run | Yrd Mat Min Mat Min Exi Min Mat Gar Mat Fac Gar Fac Gar Fac Ext Cet Arc Hub Fac Upp Upp Fac Res Machines Accessed 82 | . 10 . 4 . 2 . 1 4 6 7 3 2 2 10 14 1 . 3 4 1 . 3 5 Terminals 57 | . 7 . 1 . . . . 4 3 4 3 1 2 7 13 1 . 3 2 . . 3 3 Fabricators 3 | . . . . . . . . . . 2 . . . 1 . . . . . . . . . Repair Stations 2 | . 1 . . . . . . . 1 . . . . . . . . . . . . . . Recycling Units 7 | . 2 . 2 . . . . . 1 . . . . 1 1 . . . . . . . . Scanalyzers 5 | . . . 1 . . . . . 1 . . . . 1 . . . . 1 . . . 1 Garrison Access 5 | . . . . . . . 1 . . 1 . 1 . . . . . . 1 . . . 1 Total Hacks 197 | . 27 . 10 . 2 . 1 9 19 14 8 3 2 22 33 1 . 4 13 1 . 14 14 Successful 76 | . 15 . 5 . 2 . 1 2 10 7 3 2 1 7 9 1 . 2 7 1 . . 1 Failed 118 | . 12 . 4 . . . . 7 8 7 5 1 1 15 24 . . 2 5 . . 14 13 Catastrophic 23 | . . . . . . . . 1 2 2 . . 1 3 2 . . 1 1 . . 5 5 Database Lockouts 3 | . . . 1 . . . . . 1 . . . . . . . . . 1 . . . . Manual 84 | . 19 . 2 . 1 . . . 8 8 . 2 . 9 12 1 . 4 4 . . 13 1 Terminals 148 | . 21 . 4 . . . . 9 8 11 8 2 2 15 31 1 . 4 8 . . 14 10 Fabricators 3 | . . . . . . . . . . 2 . . . 1 . . . . . . . . . Repair Stations 7 | . 2 . . . . . . . 5 . . . . . . . . . . . . . . Recycling Units 12 | . 4 . 3 . . . . . 1 . . . . 2 2 . . . . . . . . Scanalyzers 17 | . . . 3 . . . . . 5 . . . . 4 . . . . 4 . . . 1 Garrison Access 7 | . . . . . . . 1 . . 1 . 1 . . . . . . 1 . . . 3 Terminal Hacks 34 | . 5 . 1 . 2 . . 2 1 3 3 1 1 2 7 1 . . 3 1 . . 1 Record 1 | . . . . . 1 . . . . . . . . . . . . . . . . . . Robot Analysis 3 | . 3 . . . . . . . . . . . . . . . . . . . . . . Open Door 9 | . . . . . . . . . . . 1 . . 1 5 1 . . . 1 . . . Branch Access Points 4 | . . . 1 . . . . . . 1 . . . 1 . . . . 1 . . . . Emergency Access Points 2 | . . . . . . . . 1 . . 1 . . . . . . . . . . . . Terminal Index 2 | . . . . . . . . . . . . 1 . . . . . . . . . . 1 Unreport Threat 4 | . . . . . . . . . 1 1 . . . . 1 . . . 1 . . . . Locate Traps 1 | . 1 . . . . . . . . . . . . . . . . . . . . . . Hauler Manifests 2 | . 1 . . . . . . . . . . . . . . . . . 1 . . . . Zone Layout 2 | . . . . . . . . . . 1 . . . . 1 . . . . . . . . Garrison Registry 3 | . . . . . . . . 1 . . 1 . 1 . . . . . . . . . . Proto ID Catalog 1 | . . . . . 1 . . . . . . . . . . . . . . . . . . Fabricator Hacks 1 | . . . . . . . . . . 1 . . . . . . . . . . . . . Network Status 1 | . . . . . . . . . . 1 . . . . . . . . . . . . . Repair Station Hacks 5 | . 2 . . . . . . . 3 . . . . . . . . . . . . . . Scan Component 3 | . 1 . . . . . . . 2 . . . . . . . . . . . . . . Repair 2 | . 1 . . . . . . . 1 . . . . . . . . . . . . . . Recycling Unit Hacks 7 | . 2 . 2 . . . . . 1 . . . . 1 1 . . . . . . . . Retrieve Components 7 | . 2 . 2 . . . . . 1 . . . . 1 1 . . . . . . . . Scanalyzer 9 | . . . 2 . . . . . 4 . . . . 1 . . . . 2 . . . . Insert Component 1 | . . . . . . . . . 1 . . . . . . . . . . . . . . Analyze 1 | . . . . . . . . . 1 . . . . . . . . . . . . . . Retrieve Study 7 | . . . 2 . . . . . 2 . . . . 1 . . . . 2 . . . . Garrison Access Hacks 4 | . . . . . . . 1 . . 1 . 1 . . . . . . 1 . . . . Unlock Access 3 | . . . . . . . 1 . . 1 . 1 . . . . . . . . . . . Seal Access 1 | . . . . . . . . . . . . . . . . . . . 1 . . . . Unauthorized Hacks 16 | . 6 . . . . . . . 1 2 . . . 3 1 . . 2 1 . . . . Terminals 16 | . 6 . . . . . . . 1 2 . . . 3 1 . . 2 1 . . . . Assimilate 2 | . . . . . . . . . . . . . . 2 . . . . . . . . . Botnet 7 | . 1 . . . . . . . 1 2 . . . 1 1 . . . 1 . . . . Skim 5 | . 5 . . . . . . . . . . . . . . . . . . . . . . Sabotage 2 | . . . . . . . . . . . . . . . . . . 2 . . . . . Fabricators . | . . . . . . . . . . . . . . . . . . . . . . . . Repair Stations . | . . . . . . . . . . . . . . . . . . . . . . . . Recycling Units . | . . . . . . . . . . . . . . . . . . . . . . . . Scanalyzers . | . . . . . . . . . . . . . . . . . . . . . . . . Garrison Access . | . . . . . . . . . . . . . . . . . . . . . . . . Data Cores Recovered . | . . . . . . . . . . . . . . . . . . . . . . . . Used . | . . . . . . . . . . . . . . . . . . . . . . . . Hacking Detections 58 | . 8 . 2 . . . . 3 4 5 2 1 2 9 11 1 . 2 1 . . 3 4 Full Trace Events 10 | . 2 . . . . . . 2 . . 2 . . 1 3 . . . . . . . . Feedback Events . | . . . . . . . . . . . . . . . . . . . . . . . . Feedback Blocked . | . . . . . . . . . . . . . . . . . . . . . . . . Robot Schematics Acquired . | . . . . . . . . . . . . . . . . . . . . . . . . Robots Built . | . . . . . . . . . . . . . . . . . . . . . . . . Authchips . | . . . . . . . . . . . . . . . . . . . . . . . . Time . | . . . . . . . . . . . . . . . . . . . . . . . . Total Robot Build Rating . | . . . . . . . . . . . . . . . . . . . . . . . . Part Schematics Acquired 1 | . . . . . . . . . 1 . . . . . . . . . . . . . . Parts Built . | . . . . . . . . . . . . . . . . . . . . . . . . Authchips . | . . . . . . . . . . . . . . . . . . . . . . . . Time . | . . . . . . . . . . . . . . . . . . . . . . . . Total Part Build Rating . | . . . . . . . . . . . . . . . . . . . . . . . . Part Studies Acquired 7 | . . . 2 . . . . . 2 . . . . 1 . . . . 2 . . . . Parts Repaired 2 | . 1 . . . . . . . 1 . . . . . . . . . . . . . . Time 58 | . 26 . . . . . . . 32 . . . . . . . . . . . . . . Parts Recycled . | . . . . . . . . . . . . . . . . . . . . . . . . Recycled Matter . | . . . . . . . . . . . . . . . . . . . . . . . . Retrieved Matter . | . . . . . . . . . . . . . . . . . . . . . . . . Retrieved Components 35 | . 13 . 12 . . . . . . . . . . . 10 . . . . . . . . Parts Scanalyzed 1 | . . . . . . . . . 1 . . . . . . . . . . . . . . Part Schematics Acquired 1 | . . . . . . . . . 1 . . . . . . . . . . . . . . Parts Damaged . | . . . . . . . . . . . . . . . . . . . . . . . . Bothacking | -11 -10 -10 -9 -9 -9 -8 -8 -8 -8 -7 -7 -7 -7 -6 -6 -6 -6 -6 -5 -5 -5 -4 -3 ------------ Run | Yrd Mat Min Mat Min Exi Min Mat Gar Mat Fac Gar Fac Gar Fac Ext Cet Arc Hub Fac Upp Upp Fac Res Used RIF Installer . | . . . . . . . . . . . . . . . . . . . . . . . . Robots Hacked . | . . . . . . . . . . . . . . . . . . . . . . . . Non-combat . | . . . . . . . . . . . . . . . . . . . . . . . . Combat . | . . . . . . . . . . . . . . . . . . . . . . . . Robot Hacks Applied . | . . . . . . . . . . . . . . . . . . . . . . . . Relay Couplers Released 57 | . . . . . . . . 14 . . 18 . 25 . . . . . . . . . . Machine Destruction 57 | . . . . . . . . 14 . . 18 . 25 . . . . . . . . . . Fabnet Peak Effective % . | . . . . . . . . . . . . . . . . . . . . . . . . Robots Rewired 37 | . . . . . . . . 6 . . 17 . . . 14 . . . . . . . . Allies Hacked . | . . . . . . . . . . . . . . . . . . . . . . . . Hacks Repelled . | . . . . . . . . . . . . . . . . . . . . . . . . Allies | -11 -10 -10 -9 -9 -9 -8 -8 -8 -8 -7 -7 -7 -7 -6 -6 -6 -6 -6 -5 -5 -5 -4 -3 -------- Run | Yrd Mat Min Mat Min Exi Min Mat Gar Mat Fac Gar Fac Gar Fac Ext Cet Arc Hub Fac Upp Upp Fac Res Total Allies 56 | . . . . . . . . 6 . . 17 . 2 2 24 5 . . . . . . . Largest Group 16 | . . . . . . . . 4 1 . 11 9 9 1 16 10 8 . . . . . . Highest-Rated Group 787 | . . . . . . . . 92 21 . 303 254 254 80 451 787 717 . . . . . . Highest-Rated Ally 159 | . . . . . . . . 31 21 . 31 31 80 80 159 159 159 . . . . . . Initial Warlord ECA Mod 25 | . . . . . . . . . 10 9 9 18 18 25 25 25 25 25 24 24 24 23 22 Total Orders 9 | . . . . . . . . . . . . . 4 2 3 . . . . . . . . STAY 4 | . . . . . . . . . . . . . 2 . 2 . . . . . . . . FOLLOW 3 | . . . . . . . . . . . . . 2 . 1 . . . . . . . . EXPLORE 1 | . . . . . . . . . . . . . . 1 . . . . . . . . . RETURN 1 | . . . . . . . . . . . . . . 1 . . . . . . . . . Ally Attacks 471 | . . . . . . . . 33 2 . 52 4 84 3 200 42 51 . . . . . . Total Damage 11516 | . . . . . . . . 781 23 . 1166 144 1981 284 4022 1385 1730 . . . . . . Kills 84 | . . . . . . . . 5 . . 11 2 14 3 31 9 9 . . . . . . Allies Corrupted 1 | . . . . . . . . . . . . . . 1 . . . . . . . . . Allies Melted . | . . . . . . . . . . . . . . . . . . . . . . . . Intel | -11 -10 -10 -9 -9 -9 -8 -8 -8 -8 -7 -7 -7 -7 -6 -6 -6 -6 -6 -5 -5 -5 -4 -3 ------- Run | Yrd Mat Min Mat Min Exi Min Mat Gar Mat Fac Gar Fac Gar Fac Ext Cet Arc Hub Fac Upp Upp Fac Res Active Infowar (turns) 14574 | 57 712 . . . . . 414 . 1527 993 1413 159 1030 1484 1224 2 . 269 769 1191 12 1652 1666 Optics 2 | . . . . . . . . . . . . . . . . 2 . . . . . . . Sensors 1182 | . . . . . . . . . . . . . . . . . . . 1 1169 12 . . Terrain 7646 | . . . . . . . 414 . 1527 863 . 159 . 1483 135 . . 257 769 32 . 1652 355 Seismic 769 | 57 712 . . . . . . . . . . . . . . . . . . . . . . Machine Analysis 6303 | . . . . . . . . . . 993 1413 159 1030 1484 1224 . . . . . . . . Spoofing 1 | . . . . . . . . . . . . . . 1 . . . . . . . . . Jamming 1985 | . . . . . . . . . . . . . . 11 . . . 12 . . . 296 1666 ECM 2 | . . . . . . . . . . . . . . 2 . . . . . . . . . Robot Analysis Total 3 | . 3 . . . . . . . . . . . . . . . . . . . . . . Derelict Logs Recovered 2 | . . 1 . 1 . . . . . . . . . . . . . . . . . . . Drone Launches 2 | . . . . . . . . . . . . . . 2 . . . . . . . . . Drone Recoveries . | . . . . . . . . . . . . . . . . . . . . . . . . Exploration | -11 -10 -10 -9 -9 -9 -8 -8 -8 -8 -7 -7 -7 -7 -6 -6 -6 -6 -6 -5 -5 -5 -4 -3 ------------- Run | Yrd Mat Min Mat Min Exi Min Mat Gar Mat Fac Gar Fac Gar Fac Ext Cet Arc Hub Fac Upp Upp Fac Res Turns Passed 25204 | 174 1809 558 1282 705 610 498 415 2289 2421 993 1413 159 1030 1484 2301 439 123 709 870 1250 170 1836 1666 Spaces Moved 11096 | 72 810 326 488 286 252 166 134 732 721 454 761 114 592 953 1175 216 66 268 422 529 48 710 801 Core 3 | 2 1 . . . . . . . . . . . . . . . . . . . . . . Treads 5926 | 70 809 326 488 286 252 166 134 732 721 204 . . . . 59 33 . 186 422 529 48 309 152 Legs 3465 | . . . . . . . . . . 250 761 114 592 953 795 . . . . . . . . Wheels 1702 | . . . . . . . . . . . . . . . 321 183 66 82 . . . 401 649 Hover . | . . . . . . . . . . . . . . . . . . . . . . . . Flight . | . . . . . . . . . . . . . . . . . . . . . . . . Fastest Speed 50 | 50 160 160 160 240 240 240 240 250 241 107 107 107 105 108 112 115 160 145 160 162 245 130 95 Average Speed 174 | 156 179 160 211 240 240 240 243 250 247 171 107 118 117 110 127 133 160 158 160 212 324 206 174 Slowest Speed 450 | 160 450 160 240 240 240 240 250 250 330 250 107 179 190 112 190 160 160 160 162 245 330 410 270 Overloaded Moves . | . . . . . . . . . . . . . . . . . . . . . . . . Propulsion Burnouts . | . . . . . . . . . . . . . . . . . . . . . . . . Robots Hopped . | . . . . . . . . . . . . . . . . . . . . . . . . Potential Cave-ins 8 | . . . . . . . . . . . . . . . 5 . . . . . . 3 . Cave-ins Triggered . | . . . . . . . . . . . . . . . . . . . . . . . . Exploration Rate (%) 45 | 5 95 75 37 48 61 56 12 89 46 19 90 3 61 32 80 67 77 27 14 54 6 18 27 Regions Visited 23 Branch Regions 10 Pre-discovered Areas 2 | . . . . . 1 . . . . . . . . . . . . . . 1 . . . Known Exits Taken 7 | . . . 1 . . 1 1 . . 1 . 1 . 1 . . . . 1 . . . . Unknown Exits Taken 13 | 1 1 1 . 1 1 . . . 1 . . . . . 1 1 1 1 . 1 1 1 . Scrap Searched 3 | . . 1 . . . 1 . . . . . . . . . . . . . . 1 . . Spaces Dug 219 | . 4 3 10 . . 3 1 18 24 17 6 2 2 41 9 . . 23 19 14 . 22 1 Terrain Destroyed 735 | . 26 16 19 13 . 31 1 34 43 23 6 2 45 93 87 . . 30 42 24 5 90 105 Melee 140 | . 4 . 1 . . 3 1 2 16 16 6 2 2 39 7 . . 8 19 . . 14 . Projectile 145 | . . . . . . . . . 14 1 . . . 10 11 . . 7 23 10 5 50 14 AOE 450 | . 22 16 18 13 . 28 . 32 13 6 . . 43 44 69 . . 15 . 14 . 26 91 Terrain Rammed . | . . . . . . . . . . . . . . . . . . . . . . . . Walls Destroyed . | . . . . . . . . . . . . . . . . . . . . . . . . Machines Disabled . | . . . . . . . . . . . . . . . . . . . . . . . . Actions | -11 -10 -10 -9 -9 -9 -8 -8 -8 -8 -7 -7 -7 -7 -6 -6 -6 -6 -6 -5 -5 -5 -4 -3 --------- Run | Yrd Mat Min Mat Min Exi Min Mat Gar Mat Fac Gar Fac Gar Fac Ext Cet Arc Hub Fac Upp Upp Fac Res Total 14830 | 103 1032 360 682 298 259 232 203 1011 1172 603 1183 123 769 1231 1677 342 76 431 522 612 54 890 965 Wait 1368 | . 87 17 114 4 . 41 25 47 277 69 84 . 24 119 157 87 3 79 12 37 . 70 15 Move 11074 | 71 809 325 487 285 251 165 133 731 720 453 760 113 591 952 1174 215 65 267 421 528 47 710 801 Hop . | . . . . . . . . . . . . . . . . . . . . . . . . Pick Up 192 | 7 18 4 17 1 3 1 8 12 6 9 5 . 9 13 20 3 . 6 12 5 . 5 28 Fast Attach 100 | 5 7 . 1 . . . 1 1 10 . 3 1 8 5 11 8 . 5 3 1 1 11 18 Attach 64 | 2 2 . 2 . . . 2 . 1 5 2 . . 4 13 . 3 2 8 . . 4 14 Detach 7 | . . . . . . . . 1 . . . . . . 1 . . . 1 . . 1 3 Swap 308 | 1 13 3 14 3 2 5 9 33 37 16 18 3 27 28 31 5 . 17 13 14 1 3 12 Drop 252 | . 15 5 14 1 3 1 11 16 20 14 7 . 26 27 27 13 . 7 9 9 1 9 17 Fire 755 | 17 66 5 32 3 . 15 12 67 78 17 50 4 60 37 98 11 4 39 22 16 4 55 43 Melee 335 | . 8 . 1 . . 4 2 49 22 20 46 2 24 46 57 . . 9 21 2 . 22 . Ram 1 | . . . . . . . . . . . . . . . 1 . . . . . . . . Kick 2 | . . . . . . . . . . . . . . . 2 . . . . . . . . Crush 10 | . 7 1 . 1 . . . . 1 . . . . . . . . . . . . . . Escape Stasis 34 | . . . . . . . . 12 . . . . . . 8 . . . . . . . 14 Rewire 328 | . . . . . . . . 42 . . 208 . . . 77 . 1 . . . . . . Trap . | . . . . . . . . . . . . . . . . . . . . . . . . Miscellaneous . | . . . . . . . . . . . . . . . . . . . . . . . . Route ------- -11/Scrapyard -10/Materials (discovered 4 exits: *Mat x3 / [*Min]) -10/Mines -9/Materials (discovered 2 exits: *Min x2) -9/Mines (discovered 4 exits: *Mat x2 / *Exi / [*Zio]) -9/Exiles (discovered 2 exits: [*Min x2]) -8/Mines -8/Materials -8/Garrison (discovered 3 exits: *Mat x3) -8/Materials -7/Factory (discovered 5 exits: *Fac / Sto / Low x2 / Gar) -7/Garrison (discovered 3 exits: *Fac x3) -7/Factory -7/Garrison (discovered 3 exits: *Fac x3) -6/Factory (discovered 5 exits: *Fac / *Low x2 / *Ext x2) -6/Extension (discovered 2 exits: *Fac / *Cet) -6/Cetus (discovered 2 exits: *Fac / [*Arc]) -6/Archives (discovered 2 exits: *Hub x2) -6/Hub_04(d) (discovered 2 exits: *Fac x2) -5/Factory (discovered 2 exits: *Upp x2) -5/Upper Caves -5/Upper Caves -4/Factory -3/Research (discovered 1 exit: [*Res]) History --------- Turn | Location | Event 19 | -11/Scrapyard | Discovered new exit (range 15) 175 | -11/Scrapyard | Entered Materials 309 | -10/Materials | Build established: Mutant 637 | -10/Materials | Discovered new exit (range 5) 857 | -10/Materials | Discovered new exit (range 15) 1170 | -10/Materials | Repaired Lgt. Treads 1195 | -10/Materials | Discovered new exit (range 7) 1355 | -10/Materials | Discovered new exit (range 11) 1984 | -10/Materials | Entered Mines 2010 | -10/Mines | Met a Derelict bent on vengeance 2213 | -10/Mines | Learned Materials trap positions 2260 | -10/Mines | Core integrity fell below 50% 2330 | -10/Mines | Found a hidden stash of uninstalled traps 2429 | -10/Mines | Found a damaged Exp. Sensor Array with a note attached 2433 | -10/Mines | Found Prototype Device 2503 | -10/Mines | Discovered new exit (range 16) 2542 | -10/Mines | Entered Materials 2542 | -9/Materials | Evolved 2 slots: Propulsion x1, Weapon x1 2543 | -9/Materials | Loaded intel: 32 trap records 2666 | -9/Materials | Central database locked down 2830 | -9/Materials | Build established: Gunner 3204 | -9/Materials | Identified exit to Mines 3442 | -9/Materials | Build established: Scavenger-Gunner 3824 | -9/Materials | Entered Mines 3847 | -9/Mines | Destroyed 8 combat bots 3880 | -9/Mines | Discovered new exit (range 11) 3887 | -9/Mines | Build established: Gunner 3978 | -9/Mines | Deemed a non-threat by the Exiles lab entrance 3978 | -9/Mines | Discovered new exit (range 5) 4095 | -9/Mines | Received a Rocket Launcher from a helpful Derelict 4102 | -9/Mines | Identified exit to Materials 4338 | -9/Mines | A Derelict revealed a hidden shortcut to a safe place 4529 | -9/Mines | Entered Exiles 4561 | -9/Exiles | Discovered new exit (range 15) 4594 | -9/Exiles | Met 8R-AWN 4628 | -9/Exiles | Met EX-HEX 4705 | -9/Exiles | Met EX-BIN 4731 | -9/Exiles | Aligned with FarCom system 4733 | -9/Exiles | Given EX-Vault access code 4791 | -9/Exiles | Opened EX-Vault 4811 | -9/Exiles | Found AWS/Thermal 4875 | -9/Exiles | Found Latent Energy Streamer 4952 | -9/Exiles | Warned to stay clear of 0b10 Research branches 5022 | -9/Exiles | Met EX-DEC 5039 | -9/Exiles | Learned location of Zion (-7) 5108 | -9/Exiles | Discovered new exit (range 12) 5139 | -9/Exiles | Left Exiles lab with Latent Energy Streamer 5139 | -9/Exiles | Entered Mines 5605 | -8/Mines | Discovered exit to Materials (range 6) 5637 | -8/Mines | Entered Materials 5637 | -8/Materials | Evolved 2 slots: Utility x1, Weapon x1 5678 | -8/Materials | Build established: Scavenger-Skirmisher 6031 | -8/Materials | Identified exit to Garrison 6052 | -8/Materials | Entered Garrison 6235 | -8/Garrison | Build established: Skirmisher 6352 | -8/Garrison | Triggered checkpoint 6401 | -8/Garrison | Garrison Relay disabled 6586 | -8/Garrison | Triggered checkpoint 6635 | -8/Garrison | Triggered checkpoint 6690 | -8/Garrison | Triggered checkpoint 6828 | -8/Garrison | Garrison Relay disabled 6904 | -8/Garrison | Triggered checkpoint 7116 | -8/Garrison | Discovered new exit (range 8) 7401 | -8/Garrison | Lost 5 allies 7419 | -8/Garrison | Discovered new exit (range 16) 7488 | -8/Garrison | Spotted B-75 Beast 7497 | -8/Garrison | Allies destroyed B-75 Beast 7534 | -8/Garrison | Triggered checkpoint 7615 | -8/Garrison | Garrison Relay disabled 8165 | -8/Garrison | Discovered new exit (range 59) 8165 | -8/Garrison | Discovered new exit (range 72) 8165 | -8/Garrison | Discovered new exit (range 38) 8206 | -8/Garrison | Triggered checkpoint 8232 | -8/Garrison | Garrison Relay disabled 8282 | -8/Garrison | Triggered checkpoint 8341 | -8/Garrison | Entered Materials 8341 | -8/Materials | Accompanied by 1 ally 8594 | -8/Materials | Repaired Hrd. Light Armor Plating 9094 | -8/Materials | Build established: Assassin 9236 | -8/Materials | Central database locked down 9541 | -8/Materials | First assault squad dispatched 10100 | -8/Materials | Core integrity fell below 50% 10581 | -8/Materials | Discovered new exit (range 2) 10762 | -8/Materials | Entered Factory 10762 | -7/Factory | Evolved 2 slots: Propulsion x1, Utility x1 11565 | -7/Factory | Build established: Scavenger-Skirmisher 11603 | -7/Factory | Identified exit to Storage 11603 | -7/Factory | Identified exit to Lower Caves 11713 | -7/Factory | Discovered new exit (range 8) 11749 | -7/Factory | Identified exit to Garrison 11755 | -7/Factory | Entered Garrison 11829 | -7/Garrison | Triggered checkpoint 11873 | -7/Garrison | Garrison Relay disabled 11883 | -7/Garrison | Triggered checkpoint 12055 | -7/Garrison | Triggered checkpoint 12081 | -7/Garrison | Triggered checkpoint 12081 | -7/Garrison | Triggered checkpoint 12511 | -7/Garrison | Discovered new exit (range 12) 12532 | -7/Garrison | Garrison Relay disabled 12533 | -7/Garrison | Triggered checkpoint 12565 | -7/Garrison | Triggered checkpoint 12571 | -7/Garrison | Garrison Relay disabled 12573 | -7/Garrison | Lost 4 allies 12885 | -7/Garrison | Garrison Relay disabled 12887 | -7/Garrison | Triggered checkpoint 12928 | -7/Garrison | Discovered new exit (range 12) 12979 | -7/Garrison | Triggered checkpoint 13013 | -7/Garrison | Discovered new exit (range 22) 13013 | -7/Garrison | Discovered new exit (range 58) 13013 | -7/Garrison | Discovered new exit (range 30) 13028 | -7/Garrison | Triggered checkpoint 13035 | -7/Garrison | Build established: Commander-Skirmisher 13047 | -7/Garrison | Garrison Relay disabled 13054 | -7/Garrison | Lost 3 allies 13168 | -7/Garrison | Entered Factory 13168 | -7/Factory | Accompanied by 9 allies 13307 | -7/Factory | Identified exit to Garrison 13327 | -7/Factory | Entered Garrison 13327 | -7/Garrison | Accompanied by 9 allies 13452 | -7/Garrison | Garrison Relay disabled 13547 | -7/Garrison | Triggered checkpoint 13562 | -7/Garrison | Discovered new exit (range 54) 13562 | -7/Garrison | Discovered new exit (range 63) 13562 | -7/Garrison | Discovered new exit (range 77) 13576 | -7/Garrison | Garrison Relay disabled 13653 | -7/Garrison | Triggered checkpoint 13716 | -7/Garrison | Triggered checkpoint 13727 | -7/Garrison | Triggered checkpoint 13796 | -7/Garrison | Build established: Scavenger-Skirmisher 13992 | -7/Garrison | Garrison Relay disabled 14014 | -7/Garrison | Found embedded Infiltrators 14021 | -7/Garrison | Triggered checkpoint 14051 | -7/Garrison | Spotted B-75 Beast 14067 | -7/Garrison | Garrison Relay disabled 14073 | -7/Garrison | Destroyed B-75 Beast 14211 | -7/Garrison | Triggered checkpoint 14277 | -7/Garrison | Garrison Relay disabled 14293 | -7/Garrison | Garrison Relay disabled 14357 | -7/Garrison | Entered Factory 14357 | -6/Factory | Accompanied by 1 ally 14357 | -6/Factory | Evolved 2 slots: Propulsion x1, Utility x1 14653 | -6/Factory | Build established: Scavenger-Assassin 15567 | -6/Factory | Identified exit to Lower Caves 15567 | -6/Factory | Identified exit to Extension 15598 | -6/Factory | Discovered new exit (range 14) 15841 | -6/Factory | Entered Extension 15841 | -6/Extension | Accompanied by 1 ally 16000 | -6/Extension | Rescued a captive Derelict 16001 | -6/Extension | Rescued a captive Derelict 16114 | -6/Extension | Rescued a captive Derelict 16346 | -6/Extension | Build established: Scavenger-Gunner 16386 | -6/Extension | Rescued a captive Derelict 16387 | -6/Extension | Rescued a captive Derelict 16415 | -6/Extension | Rescued a captive Derelict 16420 | -6/Extension | Rescued a captive Derelict 16750 | -6/Extension | Build established: Commander-Gunner 16891 | -6/Extension | First assault squad dispatched 16928 | -6/Extension | Spotted B-75 Beast 16932 | -6/Extension | Allies destroyed B-75 Beast 16955 | -6/Extension | Lost 4 allies 17000 | -6/Extension | Spotted B-75 Beast 17046 | -6/Extension | Lost 11 allies 17065 | -6/Extension | Lost 3 parts (2u1w) 17091 | -6/Extension | Disrupted transfer network 17139 | -6/Extension | Lost 10 parts (1p4n2u3w) 17361 | -6/Extension | Build established: Scavenger-Mutant 17632 | -6/Extension | Rescued A7 17794 | -6/Extension | Build established: Scavenger-Gunner 17954 | -6/Extension | Energy Cycler disabled 17955 | -6/Extension | Rescued a captive Derelict 17957 | -6/Extension | Rescued a captive Derelict 17957 | -6/Extension | Rescued a captive Derelict 17959 | -6/Extension | Rescued a captive Derelict 17960 | -6/Extension | Rescued a captive Derelict 18010 | -6/Extension | Discovered new exit (range 10) 18011 | -6/Extension | Discovered new exit (range 6) 18142 | -6/Extension | Entered Cetus 18142 | -6/Cetus | Accompanied by 5 allies (A7) 18147 | -6/Cetus | Acquired a Cetus Manufacturing Module code from A7 18159 | -6/Cetus | Spotted Cetus Guard 18159 | -6/Cetus | Spotted Cetus Guard 18163 | -6/Cetus | Spotted Cetus Guard 18166 | -6/Cetus | Allies destroyed Cetus Guard 18170 | -6/Cetus | Spotted Cetus Guard 18175 | -6/Cetus | Allies destroyed Cetus Guard 18177 | -6/Cetus | Allies destroyed Cetus Guard 18178 | -6/Cetus | Allies destroyed Cetus Guard 18263 | -6/Cetus | Started Cetus Manufacturing Module 18273 | -6/Cetus | Escorted A7 to Cetus Mainframe 18288 | -6/Cetus | Manufactured an Enhanced Grunt 18313 | -6/Cetus | Manufactured an Enhanced Grunt 18338 | -6/Cetus | Manufactured an Enhanced Grunt 18363 | -6/Cetus | Manufactured an Enhanced Grunt 18388 | -6/Cetus | Manufactured an Enhanced Grunt 18411 | -6/Cetus | Discovered new exit (range 15) 18433 | -6/Cetus | Spotted Cetus Guard 18433 | -6/Cetus | Spotted Cetus Guard 18437 | -6/Cetus | Spotted Cetus Guard 18438 | -6/Cetus | Spotted Cetus Guard 18438 | -6/Cetus | Allies destroyed Cetus Guard 18445 | -6/Cetus | Allies destroyed Cetus Guard 18459 | -6/Cetus | Destroyed Cetus Guard 18461 | -6/Cetus | Allies destroyed Cetus Guard 18466 | -6/Cetus | Discovered new exit (range 15) 18474 | -6/Cetus | Met Revision 17 18512 | -6/Cetus | Build established: Scavenger-Tank 18581 | -6/Cetus | Entered Archives 18581 | -6/Archives | Accompanied by 8 allies (A7) 18586 | -6/Archives | Received a hacking code to weaken MAIN.C 18612 | -6/Archives | Met Zhirov 18618 | -6/Archives | Reinforcements dispatched to Archives 18647 | -6/Archives | Discovered new exit (range 15) 18663 | -6/Archives | Reinforcements dispatched to Archives 18665 | -6/Archives | Zhirov warped through subspace 18665 | -6/Archives | Discovered new exit (range 15) 18683 | -6/Archives | Zhirov detonated Archives 18704 | -6/Archives | Entered Hub_04(d) 18714 | -6/Hub_04(d) | Lost 3 parts (3w) 18714 | -6/Hub_04(d) | Lost 7 allies 18918 | -6/Hub_04(d) | Discovered new exit (range 10) 19105 | -6/Hub_04(d) | Garrison activated, responded to threat 19168 | -6/Hub_04(d) | Discovered new exit (range 16) 19383 | -6/Hub_04(d) | Network Hub disabled 19390 | -6/Hub_04(d) | Spotted Lightning 19413 | -6/Hub_04(d) | Entered Factory 19413 | -5/Factory | Evolved 2 slots: Utility x1, Weapon x1 19414 | -5/Factory | Identified Exp. Sensor Array 19499 | -5/Factory | Central database locked down 19638 | -5/Factory | Identified exit to Upper Caves 19682 | -5/Factory | Build established: Scavenger-Assassin 20283 | -5/Factory | Entered Upper Caves 20302 | -5/Upper Caves | Met a Warlord Commander 20303 | -5/Upper Caves | Learned location of Warlord (-4) 20304 | -5/Upper Caves | Warlord Commander delivered Encrypted Comm Array 20593 | -5/Upper Caves | Build established: Scavenger-Tank 20679 | -5/Upper Caves | Attacked by a delusional Derelict stockpiling parts 21432 | -5/Upper Caves | Discovered new exit (range 7) 21533 | -5/Upper Caves | Entered another Upper Caves area 21535 | -5/Upper Caves | Attracted the attention of an 0b10 checkpoint 21538 | -5/Upper Caves | Discovered new exit (range 16) 21703 | -5/Upper Caves | Entered Factory 21703 | -4/Factory | Evolved 2 slots: Utility x1, Weapon x1 22199 | -4/Factory | Build established: Assassin 22749 | -4/Factory | Build established: Scavenger-Assassin 23202 | -4/Factory | Assembled infested ambush trap array 23317 | -4/Factory | Lost 4 parts (1n1u2w) 23402 | -4/Factory | System corruption reached 10% 23524 | -4/Factory | Discovered new exit (range 8) 23539 | -4/Factory | Entered Research 23539 | -3/Research | Evolved 2 slots: Power x1, Utility x1 23617 | -3/Research | Build established: Gunner 23739 | -3/Research | Revision forces began assault on 0b10 23747 | -3/Research | Met up with Revision 17++ 24030 | -3/Research | Found Prototype Device 24030 | -3/Research | Identified Exp. Focal Shield 24176 | -3/Research | Build established: Scavenger-Executioner 24227 | -3/Research | Found Hvy. Reflective Plating 24239 | -3/Research | Research terminal network offline 24293 | -3/Research | Discovered new exit (range 7) 24485 | -3/Research | Found Prototype Launcher 24486 | -3/Research | Identified Tactical Quantum Warhead 24677 | -3/Research | Lost 6 allies 24897 | -3/Research | Spotted Striker 24909 | -3/Research | Spotted Executioner 24910 | -3/Research | Spotted Striker 24948 | -3/Research | Lost 6 allies 24986 | -3/Research | Spotted Executioner 24986 | -3/Research | Spotted Striker 25040 | -3/Research | Lost 3 allies 25046 | -3/Research | Destroyed Executioner 25083 | -3/Research | Lost 4 parts (1u3w) 25175 | -3/Research | Spotted Striker 25177 | -3/Research | Spotted Striker 25190 | -3/Research | Destroyed Striker 25202 | -3/Research | Destroyed Striker 25202 | -3/Research | Spotted Executioner 25205 | -3/Research | Self-destructed Last Messages --------------- 25190_ Striker destroyed. 25190_ Penetrated by Slug. 25193_ Variable Charge Gun destroyed. 25194_ HV Slug penetrates Striker. 25194_ Striker suffers critical hit (Destroy). 25195_ System corrupted: Matter fused (-8). 25196_ Wheel destroyed. 25197_ Striker suffers critical hit (Burn). 25197_ Slug penetrates Striker. 25199_ The unstable cave ceiling collapses. 25199_ HV Slug penetrates Striker. 25199_ Destroyed Prototype Device. 25201_ Adv. Medium Treads destroyed. 25202_ HV Slug penetrates Striker. 25203_ The unstable cave ceiling collapses. 25203_ Variable Charge Gun destroyed. 25203_ Adv. Heavy Treads destroyed. 25204_ Penetrated by Slug. 25204_ Slug penetrates Wall. 25204_ Penetrated by Slug. Map ----- +----------------------------------------------------+ | #% ! #???#""" #?# #???????? # ?# %#* | | %*% #???#"Y #?# #???????? ## # | | ! #???#""" ! #?# #??????? / ## #### | | == #???# = #?# #???????# ### | | !! #???# #?# #?????? T | | % #???# #?# #?????? " | | #### #???###########?# #?????? | | ????[#?????# ???? #?????? # # ### | | ????[#?????# ####%#???????? ##[ #### | | ????+#####?# + [% +???????? ??#==!# | | ????% ??? # #????????? # ##??#!%!# | | ??? ??? # #################??#[*%" | | ??? #??? # # #??#=%=# | | ???" ###### # #??#%!=# | | ???" # # # # #??#=%=#? | | ??# # """ """ #??# !!#??# | | ??# # * """ """ #??# #### | | ??# # ! + """ """ #??#% # | | ??# [% # #??# + | | ??# %[ ## =![! = #??# # | | ??# # % ## [%=%* =%!#### # | | ??# # ## [ %[!=[= !% !/% #?## | | ? # #;###;;;+#############/##??? | | ? !%%%!%**%#??????????? ??? | | ? =[=;;## #?????????? ! ?? | | ? *@*%%; #????????? """? | | ? # =K!=[[; #????????? """# | | =!# #????????# """# | | ?########## # # ?????????# """# | | # # ########?# ""?? | | # T ??+ ?? | | [ " # #??# ??? | | [ = "" # #??#######??? | | #### ## ## = E "" # ###?????????? | | # = """ # %[ ""#?????????? | | " # = ""#?????????? | | # [* ## # ""#?????????? | | ??# !!=!## C ######### ! T#?????????? | | ??# !%[% # ## ##########! ""#?????????? | | ??# ====! !%== ""#?????????? | | ??### #! ########+## ! ""#?????????? | | ???## # ! = ## # ###?????????? | | ???# # = ## ! # ""#?????????? | | ???# ! ## !! # ""#?????????? | | ???## # % ## ! # G#?????????? | | ?#### % ]## ! # ""#?????????? | | ## %=% ! ## [# ""#?????????? | | # # !*% ## # ###?????????? | | ##%# ## + #???????????? | | # # % "" F"" ## # #???????????? | +----------------------------------------------------+ Best States ------------- Heat Dissipation 136 Energy Generation 41 Energy Capacity 420 Matter Stores 300 Matter Capacity 300 Sight Range 16 Robot Scan Range 20 Terrain Scan Range 20 Terrain Scan Density 10 Jamming Range 12 Armor Coverage 450 Core Shielding 30 Weapon Cycling 25 Phase Shifting 5 Evasion (%) 60 Targeting Accuracy 16 Target Analysis 5 Core Analysis 6 Recoil Reduction 6 Kinecelleration 30 Offensive Hacking 10 Defensive Hacking 10 Item Schematics ----------------- Enh. Autogun | -8/Materials | Scanalyzed Robot Schematics ------------------ None Fabricated ------------ Nothing Repaired ---------- Lgt. Treads | 17% | -10/Materials Hrd. Light Armor Plating | 16% | -8/Materials Studied --------- Autogun | -9/Materials | Hacked Hvy. Assault Rifle | -9/Materials | Hacked VSS Leg | -8/Materials | Hacked Titanium Leg | -8/Materials | Hacked Hvy. Rocket Launcher | -6/Factory | Hacked Coil Gun | -5/Factory | Hacked Hvy. Flak Cannon | -5/Factory | Hacked Alien Tech Used ----------------- None Achievements -------------- Generalissimo Gunslinger Main Advantage Challenges ------------ None Game ------ Seed UtilityBeamScrap Manual? 0 Play Time 03:09:51 Cumulative 101.6 hours Start 2026.02.22 @ 14:01:17 End 2026.02.24 @ 18:12:46 Sessions 22 Manual Loads 0 Difficulty Rogue Special Mode None Game No. 127 Rogue 52 Adventurer 75 Explorer 0 Win Type - Total 4 Types 4/0/0/0/0/0/0/0/0/0 Lore% 52 Gallery% 50 Achievement% 41 Wizard Run 0 Options --------- Layout 2 ASCII 0 Keyboard 0 Movement Numpad Keybinds 0 Fullscreen 2 Font 24/Smallcaps Map View 50x44 Zoom Use 0% Tactical HUD 1 Map Filters NONE Filters NONE Steam 1 RUN: 7bb4279c-13d4-437d-a33a-f0f123bac9f5